[Event "Titled Tuesday Blitz June 20 Late 2023"]
[White "FoxOnTheRun97"]
[Black "Oro, Faustino"]
[BlackFideId "20000197"]
[WhiteElo "2531"]
[BlackElo "1984"]
[Result "0-1"]
[Round "6"]
[TimeControl "180+2"]
[Date "2023.06.20"]
[WhiteClock "0:00:06"]
[BlackClock "0:00:06"]
[Board "53"]

1. Nf3 {[%clk 0:03:00]}  Nf6 {[%clk 0:02:59]} 2. g3 {[%clk 0:02:59]}  d5 {[%clk 0:02:59]} 3. Bg2 {[%clk 0:02:59]}  c6 {[%clk 0:02:59]} 4. O-O {[%clk 0:02:58]}  Bf5 {[%clk 0:02:59]} 5. b3 {[%clk 0:02:56]}  e6 {[%clk 0:03:00]} 6. Bb2 {[%clk 0:02:56]}  Be7 {[%clk 0:03:00]} 7. c4 {[%clk 0:02:56]}  h6 {[%clk 0:03:00]} 8. d3 {[%clk 0:02:50]}  O-O {[%clk 0:02:59]} 9. Nbd2 {[%clk 0:02:46]}  a5 {[%clk 0:02:59]} 10. Re1 {[%clk 0:02:14]}  Bh7 {[%clk 0:02:58]} 11. e4 {[%clk 0:02:11]}  dxe4 {[%clk 0:02:52]} 12. dxe4 {[%clk 0:02:04]}  Na6 {[%clk 0:02:52]} 13. e5 {[%clk 0:01:58]}  Nd7 {[%clk 0:02:51]} 14. Ne4 {[%clk 0:01:57]}  Nac5 {[%clk 0:02:40]} 15. Nd4 {[%clk 0:01:30]}  Nxe4 {[%clk 0:02:36]} 16. Bxe4 {[%clk 0:01:30]}  Bxe4 {[%clk 0:02:37]} 17. Rxe4 {[%clk 0:01:31]}  Nc5 {[%clk 0:02:35]} 18. Re3 {[%clk 0:01:25]}  Qc7 {[%clk 0:02:35]} 19. Qg4 {[%clk 0:01:01]}  Rad8 {[%clk 0:02:29]} 20. Rd1 {[%clk 0:01:00]}  Na6 {[%clk 0:02:18]} 21. Ree1 {[%clk 0:00:45]}  Bc5 {[%clk 0:01:56]} 22. Ne2 {[%clk 0:00:43]}  Nb4 {[%clk 0:01:54]} 23. Nf4 {[%clk 0:00:38]}  Kh7 {[%clk 0:01:31]} 24. Nh5 {[%clk 0:00:36]}  Rg8 {[%clk 0:01:30]} 25. Qe4+ {[%clk 0:00:31]}  Kh8 {[%clk 0:01:29]} 26. a3 {[%clk 0:00:24]}  Na6 {[%clk 0:01:25]} 27. Qh4 {[%clk 0:00:24]}  Qb6 {[%clk 0:00:59]} 28. Qf4 {[%clk 0:00:15]}  Rxd1 {[%clk 0:00:43]} 29. Rxd1 {[%clk 0:00:14]}  Qxb3 {[%clk 0:00:44]} 30. Rd7 {[%clk 0:00:12]}  Qxb2 {[%clk 0:00:40]} 31. Rxf7 {[%clk 0:00:11]}  Qb1+ {[%clk 0:00:39]} 32. Kg2 {[%clk 0:00:11]}  Qg6 {[%clk 0:00:40]} 33. g4 {[%clk 0:00:06]}  b5 {[%clk 0:00:38]} 34. cxb5 {[%clk 0:00:04]}  cxb5 {[%clk 0:00:39]} 35. Rb7 {[%clk 0:00:04]}  b4 {[%clk 0:00:37]} 36. axb4 {[%clk 0:00:03]}  Nxb4 {[%clk 0:00:36]} 37. h3 {[%clk 0:00:04]}  Nd5 {[%clk 0:00:37]} 38. Qc4 {[%clk 0:00:03]}  Bb4 {[%clk 0:00:35]} 39. Ra7 {[%clk 0:00:03]}  Qg5 {[%clk 0:00:30]} 40. Qe4 {[%clk 0:00:03]}  Bc3 {[%clk 0:00:28]} 41. f4 {[%clk 0:00:02]}  Qd8 {[%clk 0:00:19]} 42. g5 {[%clk 0:00:02]}  Ne7 {[%clk 0:00:17]} 43. gxh6 {[%clk 0:00:02]}  gxh6+ {[%clk 0:00:18]} 44. Kf3 {[%clk 0:00:02]}  Qd1+ {[%clk 0:00:17]} 45. Qe2 {[%clk 0:00:02]}  Qd5+ {[%clk 0:00:16]} 46. Qe4 {[%clk 0:00:03]}  Qxe4+ {[%clk 0:00:15]} 47. Kxe4 {[%clk 0:00:04]}  Nf5 {[%clk 0:00:16]} 48. Nf6 {[%clk 0:00:04]}  Ng7 {[%clk 0:00:09]} 49. Nxg8 {[%clk 0:00:03]}  Kxg8 {[%clk 0:00:10]} 50. Rc7 {[%clk 0:00:02]}  Bb4 {[%clk 0:00:10]} 51. Rc8+ {[%clk 0:00:02]}  Kh7 {[%clk 0:00:10]} 52. Rc7 {[%clk 0:00:03]}  Kg6 {[%clk 0:00:11]} 53. Rb7 {[%clk 0:00:03]}  Nh5 {[%clk 0:00:09]} 54. Rb6 {[%clk 0:00:03]}  Kf7 {[%clk 0:00:09]} 55. Ra6 {[%clk 0:00:04]}  Ng3+ {[%clk 0:00:09]} 56. Kf3 {[%clk 0:00:04]}  Nf5 {[%clk 0:00:10]} 57. Kg4 {[%clk 0:00:04]}  Nd4 {[%clk 0:00:09]} 58. Kh5 {[%clk 0:00:04]}  Ne2 {[%clk 0:00:09]} 59. Kg4 {[%clk 0:00:03]}  Nd4 {[%clk 0:00:08]} 60. Kh5 {[%clk 0:00:04]}  Nf5 {[%clk 0:00:09]} 61. Kg4 {[%clk 0:00:04]}  Bd2 {[%clk 0:00:08]} 62. Kf3 {[%clk 0:00:05]}  Kf8 {[%clk 0:00:06]} 63. Ke4 {[%clk 0:00:05]}  Kf7 {[%clk 0:00:06]} 64. Ra7+ {[%clk 0:00:05]}  Kg6 {[%clk 0:00:06]} 65. Ra6 {[%clk 0:00:06]}  Ng7 {[%clk 0:00:07]} 66. Kf3 {[%clk 0:00:06]}  Kf5 {[%clk 0:00:06]} 67. Ra7 {[%clk 0:00:06]}  Ne8 {[%clk 0:00:05]} 68. Rf7+ {[%clk 0:00:06]}  Kg6 {[%clk 0:00:06]} 69. Re7 {[%clk 0:00:06]}  Ng7 {[%clk 0:00:06]} 70. Rd7 {[%clk 0:00:06]}  Bb4 {[%clk 0:00:05]} 71. Rb7 {[%clk 0:00:05]}  Bf8 {[%clk 0:00:05]} 72. Ra7 {[%clk 0:00:04]}  Bb4 {[%clk 0:00:05]} 73. Kg4 {[%clk 0:00:04]}  h5+ {[%clk 0:00:05]} 74. Kf3 {[%clk 0:00:04]}  Bc3 {[%clk 0:00:05]} 75. Ke4 {[%clk 0:00:04]}  Nf5 {[%clk 0:00:04]} 76. Ra6 {[%clk 0:00:03]}  Nd4 {[%clk 0:00:04]} 77. Rb6 {[%clk 0:00:01]}  Ne2 {[%clk 0:00:03]} 78. Ra6 {[%clk 0:00:01]}  Ng3+ {[%clk 0:00:03]} 79. Kf3 {[%clk 0:00:02]}  Nf5 {[%clk 0:00:03]} 80. Ke4 {[%clk 0:00:02]}  Ng7 {[%clk 0:00:03]} 81. Ra7 {[%clk 0:00:03]}  Bd2 {[%clk 0:00:02]} 82. Ra6 {[%clk 0:00:03]}  Kf7 {[%clk 0:00:02]} 83. Ra7+ {[%clk 0:00:03]}  Kf8 {[%clk 0:00:03]} 84. Ra6 {[%clk 0:00:04]}  Ne8 {[%clk 0:00:04]} 85. Ra7 {[%clk 0:00:05]}  Bc3 {[%clk 0:00:02]} 86. Ra6 {[%clk 0:00:05]}  Bb4 {[%clk 0:00:03]} 87. Rxe6 {[%clk 0:00:05]}  Nc7 {[%clk 0:00:03]} 88. Rc6 {[%clk 0:00:05]}  Nb5 {[%clk 0:00:03]} 89. Rc8+ {[%clk 0:00:06]}  Ke7 {[%clk 0:00:03]} 90. Ra8 {[%clk 0:00:06]}  a4 {[%clk 0:00:03]} 91. f5 {[%clk 0:00:07]}  a3 {[%clk 0:00:03]} 92. f6+ {[%clk 0:00:07]}  Kf7 {[%clk 0:00:03]} 93. Kf5 {[%clk 0:00:07]}  Nd4+ {[%clk 0:00:04]} 94. Ke4 {[%clk 0:00:07]}  Ne6 {[%clk 0:00:04]} 95. Ra7+ {[%clk 0:00:07]}  Kg6 {[%clk 0:00:04]} 96. Ra6 {[%clk 0:00:07]}  Nc5+ {[%clk 0:00:04]} 97. Kd5 {[%clk 0:00:07]}  Nxa6 {[%clk 0:00:05]} 98. Kc4 {[%clk 0:00:07]}  a2 {[%clk 0:00:04]} 99. Kb5 {[%clk 0:00:08]}  a1=Q {[%clk 0:00:05]} 100. h4 {[%clk 0:00:08]}  Qxe5+ {[%clk 0:00:05]} 101. Kxa6 {[%clk 0:00:08]}  Qxf6+ {[%clk 0:00:06]} 102. Kb5 {[%clk 0:00:06]}  Qe5+ {[%clk 0:00:06]} 0-1


[Site "https://www.chess.com"]

[Event "Titled Tuesday Blitz June 20 Late 2023"]
[White "Badelka, Olga"]
[Black "Velikanov, Alexander"]
[WhiteFideId "13509926"]
[BlackFideId "2039290"]
[WhiteElo "2375"]
[BlackElo "2259"]
[Result "0-1"]
[Round "6"]
[TimeControl "180+2"]
[Date "2023.06.20"]
[WhiteClock "0:00:00"]
[BlackClock "0:00:04"]
[Board "54"]

1. c4 {[%clk 0:03:00]}  Nf6 {[%clk 0:02:57]} 2. Nc3 {[%clk 0:03:00]}  g6 {[%clk 0:02:57]} 3. d4 {[%clk 0:03:00]}  c5 {[%clk 0:02:55]} 4. d5 {[%clk 0:02:57]}  Bg7 {[%clk 0:02:55]} 5. e4 {[%clk 0:02:57]}  O-O {[%clk 0:02:54]} 6. e5 {[%clk 0:02:52]}  Ne8 {[%clk 0:02:50]} 7. Nf3 {[%clk 0:02:43]}  d6 {[%clk 0:02:35]} 8. exd6 {[%clk 0:02:42]}  Nxd6 {[%clk 0:02:36]} 9. Be2 {[%clk 0:02:40]}  Bg4 {[%clk 0:02:34]} 10. Be3 {[%clk 0:02:34]}  Bxf3 {[%clk 0:02:31]} 11. gxf3 {[%clk 0:02:28]}  Nd7 {[%clk 0:02:23]} 12. Qc2 {[%clk 0:02:28]}  Qa5 {[%clk 0:02:18]} 13. Bd3 {[%clk 0:02:21]}  Ne5 {[%clk 0:02:13]} 14. O-O {[%clk 0:01:46]}  Ndxc4 {[%clk 0:01:40]} 15. Bxc4 {[%clk 0:01:42]}  Nxc4 {[%clk 0:01:40]} 16. Rac1 {[%clk 0:01:40]}  Ne5 {[%clk 0:01:21]} 17. Kg2 {[%clk 0:01:38]}  Rac8 {[%clk 0:01:16]} 18. Ne4 {[%clk 0:01:37]}  c4 {[%clk 0:01:12]} 19. Bd4 {[%clk 0:01:20]}  Qxd5 {[%clk 0:00:52]} 20. Rcd1 {[%clk 0:01:10]}  Nd3 {[%clk 0:00:47]} 21. Bxg7 {[%clk 0:01:09]}  Kxg7 {[%clk 0:00:46]} 22. b3 {[%clk 0:01:02]}  Qf5 {[%clk 0:00:37]} 23. bxc4 {[%clk 0:00:47]}  Nf4+ {[%clk 0:00:36]} 24. Kh1 {[%clk 0:00:39]}  Qh3 {[%clk 0:00:35]} 25. Qc3+ {[%clk 0:00:39]}  Kg8 {[%clk 0:00:35]} 26. Rg1 {[%clk 0:00:39]}  Rfd8 {[%clk 0:00:30]} 27. Rxd8+ {[%clk 0:00:32]}  Rxd8 {[%clk 0:00:31]} 28. Qe3 {[%clk 0:00:30]}  e5 {[%clk 0:00:22]} 29. Ng5 {[%clk 0:00:28]}  Qf5 {[%clk 0:00:20]} 30. Qxa7 {[%clk 0:00:22]}  Rd4 {[%clk 0:00:11]} 31. Qxb7 {[%clk 0:00:17]}  Ne2 {[%clk 0:00:10]} 32. Rg4 {[%clk 0:00:02]}  Rxg4 {[%clk 0:00:03]} 33. fxg4 {[%clk 0:00:03]}  Qxg5 {[%clk 0:00:02]} 34. h3 {[%clk 0:00:02]}  Nf4 {[%clk 0:00:03]} 35. Kh2 {[%clk 0:00:02]}  Qh4 {[%clk 0:00:03]} 36. Qf3 {[%clk 0:00:02]}  h5 {[%clk 0:00:03]} 37. gxh5 {[%clk 0:00:01]}  Qxh5 {[%clk 0:00:04]} 38. Qe3 {[%clk 0:00:01]}  Kg7 {[%clk 0:00:03]} 39. c5 {[%clk 0:00:00]}  Qf5 {[%clk 0:00:04]} 0-1


[Site "https://www.chess.com"]

[Event "Titled Tuesday Blitz June 20 Late 2023"]
[White "Fiorito, Joaquin"]
[Black "Siniauski, Artsiom"]
[WhiteFideId "180173"]
[BlackFideId "13512269"]
[WhiteElo "2199"]
[BlackElo "2065"]
[Result "1-0"]
[Round "6"]
[TimeControl "180+2"]
[Date "2023.06.20"]
[WhiteClock "0:01:35"]
[BlackClock "0:00:00"]
[Board "56"]

1. d4 {[%clk 0:03:00]}  Nf6 {[%clk 0:02:55]} 2. c4 {[%clk 0:03:01]}  e6 {[%clk 0:02:55]} 3. Nc3 {[%clk 0:03:01]}  Bb4 {[%clk 0:02:55]} 4. e3 {[%clk 0:03:02]}  O-O {[%clk 0:02:55]} 5. Bd2 {[%clk 0:03:03]}  d5 {[%clk 0:02:53]} 6. Nf3 {[%clk 0:03:02]}  c5 {[%clk 0:02:51]} 7. a3 {[%clk 0:03:02]}  Ba5 {[%clk 0:02:48]} 8. dxc5 {[%clk 0:03:01]}  Nc6 {[%clk 0:02:37]} 9. b4 {[%clk 0:03:00]}  Bc7 {[%clk 0:02:37]} 10. cxd5 {[%clk 0:02:52]}  exd5 {[%clk 0:02:29]} 11. Nb5 {[%clk 0:02:51]}  Bb8 {[%clk 0:02:12]} 12. Bd3 {[%clk 0:02:51]}  Bg4 {[%clk 0:02:09]} 13. Qc2 {[%clk 0:02:49]}  a5 {[%clk 0:02:02]} 14. O-O {[%clk 0:02:37]}  Bxf3 {[%clk 0:01:28]} 15. gxf3 {[%clk 0:02:37]}  Ne5 {[%clk 0:01:28]} 16. f4 {[%clk 0:02:14]}  Nf3+ {[%clk 0:01:17]} 17. Kg2 {[%clk 0:02:14]}  Nh4+ {[%clk 0:01:17]} 18. Kh1 {[%clk 0:02:12]}  Qd7 {[%clk 0:01:08]} 19. Rg1 {[%clk 0:02:11]}  g6 {[%clk 0:00:50]} 20. Bc3 {[%clk 0:02:07]}  Nh5 {[%clk 0:00:48]} 21. Be2 {[%clk 0:01:51]}  Nxf4 {[%clk 0:00:15]} 22. exf4 {[%clk 0:01:48]}  Bxf4 {[%clk 0:00:16]} 23. Qd3 {[%clk 0:01:46]}  axb4 {[%clk 0:00:13]} 24. axb4 {[%clk 0:01:43]}  Rxa1 {[%clk 0:00:14]} 25. Bxa1 {[%clk 0:01:44]}  Re8 {[%clk 0:00:14]} 26. Qd4 {[%clk 0:01:39]}  Be5 {[%clk 0:00:08]} 27. Qxh4 {[%clk 0:01:39]}  Bxa1 {[%clk 0:00:08]} 28. Rxa1 {[%clk 0:01:38]}  Rxe2 {[%clk 0:00:09]} 29. Nd6 {[%clk 0:01:37]}  Qe6 {[%clk 0:00:06]} 30. Ra8+ {[%clk 0:01:34]}  Kg7 {[%clk 0:00:00]} 31. Ne8+ {[%clk 0:01:35]} 1-0


[Site "https://www.chess.com"]

[Event "Titled Tuesday Blitz June 20 Late 2023"]
[White "Bolourchifard, Farzad"]
[Black "Kochiev, Ivan"]
[WhiteFideId "12510084"]
[BlackFideId "2917890"]
[WhiteElo "2317"]
[BlackElo "2287"]
[Result "1-0"]
[Round "6"]
[TimeControl "180+2"]
[Date "2023.06.20"]
[WhiteClock "0:00:39"]
[BlackClock "0:00:00"]
[Board "58"]

1. d4 {[%clk 0:03:00]}  Nf6 {[%clk 0:02:59]} 2. Nf3 {[%clk 0:03:00]}  e6 {[%clk 0:02:59]} 3. c4 {[%clk 0:02:59]}  c5 {[%clk 0:03:00]} 4. d5 {[%clk 0:02:59]}  exd5 {[%clk 0:03:01]} 5. cxd5 {[%clk 0:03:00]}  d6 {[%clk 0:03:01]} 6. Nc3 {[%clk 0:03:00]}  g6 {[%clk 0:03:01]} 7. Bg5 {[%clk 0:03:01]}  Bg7 {[%clk 0:03:01]} 8. e4 {[%clk 0:03:01]}  O-O {[%clk 0:03:00]} 9. Be2 {[%clk 0:03:02]}  Na6 {[%clk 0:02:57]} 10. O-O {[%clk 0:03:01]}  Nc7 {[%clk 0:02:58]} 11. Re1 {[%clk 0:03:01]}  Re8 {[%clk 0:02:57]} 12. Bf1 {[%clk 0:02:51]}  Bg4 {[%clk 0:02:55]} 13. h3 {[%clk 0:02:51]}  Bxf3 {[%clk 0:02:53]} 14. Qxf3 {[%clk 0:02:52]}  h6 {[%clk 0:02:53]} 15. Bh4 {[%clk 0:02:50]}  g5 {[%clk 0:02:50]} 16. Bg3 {[%clk 0:02:50]}  a6 {[%clk 0:02:20]} 17. a4 {[%clk 0:02:50]}  h5 {[%clk 0:02:02]} 18. e5 {[%clk 0:02:32]}  dxe5 {[%clk 0:01:59]} 19. Bxe5 {[%clk 0:02:32]}  g4 {[%clk 0:01:44]} 20. hxg4 {[%clk 0:02:22]}  hxg4 {[%clk 0:01:43]} 21. Qf5 {[%clk 0:02:14]}  Qc8 {[%clk 0:01:13]} 22. Qg5 {[%clk 0:02:05]}  Rxe5 {[%clk 0:01:11]} 23. Rxe5 {[%clk 0:02:05]}  Nh7 {[%clk 0:01:07]} 24. Qf4 {[%clk 0:02:02]}  Bxe5 {[%clk 0:01:04]} 25. Qxe5 {[%clk 0:02:03]}  Ne8 {[%clk 0:01:01]} 26. Ne4 {[%clk 0:01:26]}  Qc7 {[%clk 0:00:56]} 27. Qh5 {[%clk 0:01:26]}  Qf4 {[%clk 0:00:52]} 28. Nxc5 {[%clk 0:01:17]}  Ng7 {[%clk 0:00:27]} 29. Qh2 {[%clk 0:01:14]}  Qd4 {[%clk 0:00:25]} 30. Nd3 {[%clk 0:01:05]}  Nf5 {[%clk 0:00:23]} 31. Qe5 {[%clk 0:01:05]}  Qxe5 {[%clk 0:00:11]} 32. Nxe5 {[%clk 0:01:06]}  Rd8 {[%clk 0:00:12]} 33. Bc4 {[%clk 0:01:05]}  g3 {[%clk 0:00:10]} 34. fxg3 {[%clk 0:01:00]}  Nxg3 {[%clk 0:00:09]} 35. Ra3 {[%clk 0:00:52]}  Nf5 {[%clk 0:00:08]} 36. Rb3 {[%clk 0:00:48]}  Nd6 {[%clk 0:00:07]} 37. Be2 {[%clk 0:00:49]}  Nf6 {[%clk 0:00:06]} 38. Bf3 {[%clk 0:00:49]}  Rc8 {[%clk 0:00:06]} 39. Rb6 {[%clk 0:00:48]}  Nfe8 {[%clk 0:00:04]} 40. Kf2 {[%clk 0:00:42]}  Rc2+ {[%clk 0:00:04]} 41. Kg3 {[%clk 0:00:43]}  Rc5 {[%clk 0:00:02]} 42. Nd7 {[%clk 0:00:42]}  Rc4 {[%clk 0:00:00]} 43. Nf6+ {[%clk 0:00:39]} 1-0


[Site "https://www.chess.com"]

[Event "Titled Tuesday Blitz June 20 Late 2023"]
[White "Karamsetty, Jeevan"]
[Black "Kakabayev, Mergen"]
[WhiteFideId "2025337"]
[BlackFideId "14002990"]
[WhiteElo "2131"]
[BlackElo "2240"]
[Result "0-1"]
[Round "6"]
[TimeControl "180+2"]
[Date "2023.06.20"]
[WhiteClock "0:00:03"]
[BlackClock "0:00:21"]
[Board "59"]

1. e4 {[%clk 0:03:00]}  e5 {[%clk 0:03:00]} 2. Nf3 {[%clk 0:02:59]}  Nc6 {[%clk 0:03:00]} 3. Bc4 {[%clk 0:02:59]}  Nf6 {[%clk 0:03:00]} 4. d3 {[%clk 0:02:56]}  Bc5 {[%clk 0:02:59]} 5. O-O {[%clk 0:02:56]}  d6 {[%clk 0:03:00]} 6. c3 {[%clk 0:02:55]}  a6 {[%clk 0:02:59]} 7. b4 {[%clk 0:02:55]}  Ba7 {[%clk 0:02:59]} 8. a4 {[%clk 0:02:55]}  Ne7 {[%clk 0:02:58]} 9. Bb3 {[%clk 0:02:53]}  O-O {[%clk 0:02:57]} 10. h3 {[%clk 0:02:52]}  Ng6 {[%clk 0:02:57]} 11. Re1 {[%clk 0:02:47]}  h6 {[%clk 0:02:57]} 12. Nbd2 {[%clk 0:02:46]}  Be6 {[%clk 0:02:56]} 13. Nf1 {[%clk 0:02:46]}  Re8 {[%clk 0:02:55]} 14. Ng3 {[%clk 0:02:42]}  d5 {[%clk 0:02:55]} 15. exd5 {[%clk 0:02:41]}  Bxd5 {[%clk 0:02:53]} 16. c4 {[%clk 0:02:41]}  Bxf3 {[%clk 0:02:38]} 17. Qxf3 {[%clk 0:02:38]}  Bd4 {[%clk 0:02:38]} 18. Rb1 {[%clk 0:02:34]}  c6 {[%clk 0:02:39]} 19. Ne4 {[%clk 0:02:25]}  Nxe4 {[%clk 0:02:37]} 20. Rxe4 {[%clk 0:02:26]}  Re6 {[%clk 0:02:13]} 21. Be3 {[%clk 0:02:20]}  Rf6 {[%clk 0:02:10]} 22. Qe2 {[%clk 0:02:20]}  Bxe3 {[%clk 0:02:03]} 23. fxe3 {[%clk 0:02:21]}  a5 {[%clk 0:01:58]} 24. b5 {[%clk 0:02:05]}  c5 {[%clk 0:01:58]} 25. Rd1 {[%clk 0:02:03]}  Rd6 {[%clk 0:01:49]} 26. d4 {[%clk 0:02:00]}  f5 {[%clk 0:01:44]} 27. Rxe5 {[%clk 0:01:52]}  Nxe5 {[%clk 0:01:43]} 28. dxe5 {[%clk 0:01:53]}  Rxd1+ {[%clk 0:01:43]} 29. Bxd1 {[%clk 0:01:53]}  Qe7 {[%clk 0:01:43]} 30. Qf3 {[%clk 0:01:43]}  Qxe5 {[%clk 0:01:42]} 31. Qxb7 {[%clk 0:01:42]}  Qxe3+ {[%clk 0:01:42]} 32. Kh2 {[%clk 0:01:43]}  Re8 {[%clk 0:01:37]} 33. Qd5+ {[%clk 0:01:33]}  Kh8 {[%clk 0:01:37]} 34. Qxf5 {[%clk 0:01:31]}  Qd4 {[%clk 0:01:22]} 35. Bh5 {[%clk 0:01:01]}  Qd6+ {[%clk 0:01:21]} 36. Kg1 {[%clk 0:00:38]}  Qd4+ {[%clk 0:01:10]} 37. Kh2 {[%clk 0:00:35]}  Qd6+ {[%clk 0:01:10]} 38. Kg1 {[%clk 0:00:35]}  Re1+ {[%clk 0:01:10]} 39. Kf2 {[%clk 0:00:34]}  Qd2+ {[%clk 0:01:09]} 40. Kg3 {[%clk 0:00:32]}  Qd6+ {[%clk 0:00:49]} 41. Qf4 {[%clk 0:00:21]}  Qxf4+ {[%clk 0:00:31]} 42. Kxf4 {[%clk 0:00:21]}  Ra1 {[%clk 0:00:32]} 43. Be8 {[%clk 0:00:11]}  Rxa4 {[%clk 0:00:29]} 44. Bf7 {[%clk 0:00:10]}  Rb4 {[%clk 0:00:29]} 45. Ke5 {[%clk 0:00:10]}  a4 {[%clk 0:00:30]} 46. Kd5 {[%clk 0:00:11]}  a3 {[%clk 0:00:30]} 47. Kxc5 {[%clk 0:00:11]}  Rb2 {[%clk 0:00:30]} 48. Kc6 {[%clk 0:00:05]}  a2 {[%clk 0:00:31]} 49. c5 {[%clk 0:00:06]}  a1=Q {[%clk 0:00:31]} 50. b6 {[%clk 0:00:07]}  Qa8+ {[%clk 0:00:29]} 51. Kc7 {[%clk 0:00:07]}  Qf8 {[%clk 0:00:24]} 52. Bd5 {[%clk 0:00:02]}  Qxc5+ {[%clk 0:00:21]} 53. Bc6 {[%clk 0:00:03]} 0-1


[Site "https://www.chess.com"]

[Event "Titled Tuesday Blitz June 20 Late 2023"]
[White "Martinez Ramirez, Lennis"]
[Black "Przybylski, Wojciech"]
[WhiteFideId "3509079"]
[BlackFideId "1117599"]
[WhiteElo "2410"]
[BlackElo "2228"]
[Result "0-1"]
[Round "6"]
[TimeControl "180+2"]
[Date "2023.06.20"]
[WhiteClock "0:00:28"]
[BlackClock "0:00:09"]
[Board "61"]

1. Nf3 {[%clk 0:03:00]}  Nf6 {[%clk 0:02:57]} 2. c4 {[%clk 0:03:01]}  e6 {[%clk 0:02:55]} 3. g3 {[%clk 0:03:00]}  b6 {[%clk 0:02:54]} 4. Bg2 {[%clk 0:02:59]}  Ba6 {[%clk 0:02:53]} 5. b3 {[%clk 0:02:56]}  Be7 {[%clk 0:02:52]} 6. O-O {[%clk 0:02:55]}  O-O {[%clk 0:02:51]} 7. Nc3 {[%clk 0:02:54]}  d5 {[%clk 0:02:50]} 8. cxd5 {[%clk 0:02:54]}  exd5 {[%clk 0:02:49]} 9. d4 {[%clk 0:02:53]}  c6 {[%clk 0:02:46]} 10. Bf4 {[%clk 0:02:51]}  Re8 {[%clk 0:02:45]} 11. Rc1 {[%clk 0:02:51]}  Nbd7 {[%clk 0:02:44]} 12. Re1 {[%clk 0:02:50]}  Rc8 {[%clk 0:02:44]} 13. Ne5 {[%clk 0:02:49]}  Nf8 {[%clk 0:02:40]} 14. a4 {[%clk 0:02:44]}  Ba3 {[%clk 0:02:39]} 15. Rc2 {[%clk 0:02:44]}  Ne6 {[%clk 0:02:38]} 16. e3 {[%clk 0:02:42]}  Bb4 {[%clk 0:02:35]} 17. h4 {[%clk 0:02:39]}  h6 {[%clk 0:02:25]} 18. Bh3 {[%clk 0:02:34]}  Bb7 {[%clk 0:02:18]} 19. Ree2 {[%clk 0:02:25]}  c5 {[%clk 0:02:17]} 20. Nb5 {[%clk 0:02:21]}  a6 {[%clk 0:02:04]} 21. Na7 {[%clk 0:02:05]}  Rc7 {[%clk 0:01:49]} 22. Bxe6 {[%clk 0:02:04]}  Rxe6 {[%clk 0:01:43]} 23. Nd3 {[%clk 0:02:04]}  Rd7 {[%clk 0:01:30]} 24. dxc5 {[%clk 0:01:45]}  bxc5 {[%clk 0:01:23]} 25. Nxc5 {[%clk 0:01:41]}  Bxc5 {[%clk 0:01:22]} 26. Rxc5 {[%clk 0:01:42]}  Qb6 {[%clk 0:01:19]} 27. Qd4 {[%clk 0:01:42]}  Kh7 {[%clk 0:01:09]} 28. Nc8 {[%clk 0:01:41]}  Qxb3 {[%clk 0:00:48]} 29. Rec2 {[%clk 0:01:40]}  Ne4 {[%clk 0:00:40]} 30. Rc7 {[%clk 0:01:35]}  Rxc7 {[%clk 0:00:19]} 31. Rxc7 {[%clk 0:01:36]}  Rc6 {[%clk 0:00:19]} 32. Rxc6 {[%clk 0:01:27]}  Bxc6 {[%clk 0:00:20]} 33. Qe5 {[%clk 0:01:16]}  Qd1+ {[%clk 0:00:17]} 34. Kg2 {[%clk 0:01:16]}  Bd7 {[%clk 0:00:17]} 35. Nd6 {[%clk 0:01:06]}  Bg4 {[%clk 0:00:16]} 36. Kh2 {[%clk 0:00:36]}  Nxd6 {[%clk 0:00:10]} 37. Bxh6 {[%clk 0:00:29]}  gxh6 {[%clk 0:00:06]} 38. Qf6 {[%clk 0:00:11]}  Bf3 {[%clk 0:00:06]} 39. g4 {[%clk 0:00:12]}  Qh1+ {[%clk 0:00:05]} 40. Kg3 {[%clk 0:00:13]}  Qg2+ {[%clk 0:00:06]} 41. Kf4 {[%clk 0:00:13]}  Qxg4+ {[%clk 0:00:06]} 42. Ke5 {[%clk 0:00:14]}  Qe6+ {[%clk 0:00:06]} 43. Qxe6 {[%clk 0:00:14]}  fxe6 {[%clk 0:00:06]} 44. Kxd6 {[%clk 0:00:14]}  Bg4 {[%clk 0:00:06]} 45. a5 {[%clk 0:00:15]}  Kg6 {[%clk 0:00:06]} 46. e4 {[%clk 0:00:15]}  dxe4 {[%clk 0:00:06]} 47. Ke5 {[%clk 0:00:15]}  Kh5 {[%clk 0:00:06]} 48. Kxe4 {[%clk 0:00:15]}  Kxh4 {[%clk 0:00:06]} 49. Kf4 {[%clk 0:00:16]}  Bf5 {[%clk 0:00:07]} 50. f3 {[%clk 0:00:15]}  Kh3 {[%clk 0:00:07]} 51. Ke5 {[%clk 0:00:16]}  h5 {[%clk 0:00:07]} 52. Kd6 {[%clk 0:00:17]}  h4 {[%clk 0:00:08]} 53. Kc5 {[%clk 0:00:18]}  Kg3 {[%clk 0:00:09]} 54. Kb6 {[%clk 0:00:19]}  Kxf3 {[%clk 0:00:09]} 55. Kxa6 {[%clk 0:00:20]}  Be4 {[%clk 0:00:10]} 56. Kb6 {[%clk 0:00:21]}  h3 {[%clk 0:00:10]} 57. a6 {[%clk 0:00:22]}  h2 {[%clk 0:00:11]} 58. a7 {[%clk 0:00:23]}  h1=Q {[%clk 0:00:11]} 59. Kc7 {[%clk 0:00:23]}  Ba8 {[%clk 0:00:10]} 60. Kd6 {[%clk 0:00:24]}  Qh8 {[%clk 0:00:10]} 61. Kxe6 {[%clk 0:00:25]}  Ke4 {[%clk 0:00:10]} 62. Kd6 {[%clk 0:00:26]}  Qe5+ {[%clk 0:00:09]} 63. Kd7 {[%clk 0:00:26]}  Qd5+ {[%clk 0:00:10]} 64. Kc7 {[%clk 0:00:27]}  Qb7+ {[%clk 0:00:09]} 65. Kd6 {[%clk 0:00:27]}  Qc6+ {[%clk 0:00:10]} 66. Ke7 {[%clk 0:00:26]}  Qc7+ {[%clk 0:00:10]} 67. Kf6 {[%clk 0:00:27]}  Qd7 {[%clk 0:00:10]} 68. Kg6 {[%clk 0:00:26]}  Ke5 {[%clk 0:00:09]} 69. Kg5 {[%clk 0:00:27]}  Qg7+ {[%clk 0:00:09]} 70. Kh4 {[%clk 0:00:27]}  Kf4 {[%clk 0:00:10]} 71. Kh3 {[%clk 0:00:28]}  Qg3# {[%clk 0:00:09]} 0-1


[Site "https://www.chess.com"]